Cogmind - Beta 14 @@@ ROGUE MODE // 2024.11.06 @ 18:24:49 Player: Shimmyarah Result: Self-destructed Performance ------------- Evolutions (2) 1000 Regions Visited (3) 600 Robots Destroyed (23) 115 Value Destroyed (509) 509 Prototype IDs (2) 40 Alien Tech Used (0) 0 Bonus (0) 0 TOTAL SCORE: 2264 Bonus ------- None Cogmind --------- Core Integrity 458/550 Matter 254/300 Energy 265/265 System Corruption 0% Temperature Danger (462) Movement Core (350) Ox6 Location -8/Materials Parts ------- > --- POWER (1) -------- Improved Ion Engine > --- PROPULSION (3) --- (None) > --- UTILITY (4) ------ Small Storage Unit Sensor Array Improved Targeting Computer Improved Targeting Computer > --- WEAPON (3) ------- Heavy Assault Rifle Light Cannon > --- INVENTORY (8) ---- Ion Engine Structural Scanner Sensor Array Signal Interpreter Seismic Detector Peak State ------------ > --- POWER ------------ Improved Ion Engine > --- PROPULSION ------- Light Treads Light Treads Light Treads > --- UTILITY ---------- Small Storage Unit Sensor Array Improved Targeting Computer Improved Targeting Computer > --- WEAPON ----------- Improved EM Shotgun Particle Cannon Light Cannon > --- INVENTORY -------- Ion Engine Structural Scanner Sensor Array Signal Interpreter Seismic Detector Heavy Assault Rifle [Rating: 17] Favorites ----------- Power Ion Engine Engine Ion Engine Propulsion Light Treads Treads Light Treads Utility Small Storage Unit Device Structural Scanner Storage Small Storage Unit Processor Improved Targeting Computer Weapon Particle Cannon Energy Gun EM Pulse Gun Energy Cannon Particle Cannon Ballistic Gun Assault Rifle Ballistic Cannon Light Cannon Build | -11 -10 -9 -8 ------- Run | Yrd Mat Mat Mat Slots Evolved 4 | . . 2 2 Power . | . . . . Propulsion 1 | . . 1 . Utility 2 | . . 1 1 Weapon 1 | . . . 1 Parts Attached 28 | 7 1 16 4 Power 2 | 1 . 1 . Engine 2 | 1 . 1 . Core . | . . . . Reactor . | . . . . Propulsion 5 | 2 . 3 . Treads 5 | 2 . 3 . Leg . | . . . . Wheel . | . . . . Hover . | . . . . Flight . | . . . . Utility 8 | 2 1 3 2 Device 5 | 1 1 1 2 Storage 1 | 1 . . . Processor 2 | . . 2 . Hackware . | . . . . Protection . | . . . . Artifact . | . . . . Weapon 13 | 2 . 9 2 Energy Gun 4 | 1 . 2 1 Energy Cannon 6 | . . 6 . Ballistic Gun 2 | 1 . . 1 Ballistic Cannon 1 | . . 1 . Launcher . | . . . . Special Weapon . | . . . . Impact Weapon . | . . . . Slashing Weapon . | . . . . Piercing Weapon . | . . . . Special Melee Weapon . | . . . . Unidentified Prototypes 2 | . . 2 . Parts Lost 5 | . . . 5 Power . | . . . . Propulsion 3 | . . . 3 Utility . | . . . . Weapon 2 | . . . 2 Highest Loss Streak 5 | . . . 5 To Critical Strikes . | . . . . Average Slot Usage (%) 95 | . 100 93 87 Engine 12 | . 14 11 9 Treads 27 | . 28 27 24 Device 15 | . 14 17 9 Storage 12 | . 14 11 9 Processor 3 | . . 4 18 Energy Gun 6 | . 14 1 1 Energy Cannon 10 | . . 18 7 Ballistic Gun 5 | . 14 . . Ballistic Cannon 1 | . . 1 9 Peak Build Rating 17 | 9 9 16 17 Average Rating 10 | 5 7 13 14 On Entrance 7 | . 9 7 14 Naked Turns . | . . . . Heaviest Build 22 | 15 15 22 20 Greatest Support 60 | 40 40 60 60 Greatest Overweight (x) . | . . . . Average Overweight (x) . | . . . . Largest Inventory Capacity 8 | 8 8 8 8 Average Capacity 7 | 7 8 8 8 Most Carried 8 | 5 6 8 7 Average Carried 5 | 2 5 7 6 Final Capacity 8 | 8 8 8 8 Final Carried 8 | 4 6 8 5 Class Distribution -------------------- 100% | Mutant Dominant Class ---------------- Mutant | -10/Materials Mutant | -9/Materials Mutant | -8/Materials Resources | -11 -10 -9 -8 ----------- Run | Yrd Mat Mat Mat Matter Collected 560 | 351 . 209 . Remotely . | . . . . Salvage Created 887 | 261 . 524 102 Parts 46 | 19 . 22 5 Haulers Intercepted . | . . . . Recyclers Shooed . | . . . . Parts Field Recycled . | . . . . Retrieved Matter . | . . . . Parts Self-Destructed . | . . . . Prevented . | . . . . Kills | -11 -10 -9 -8 ------- Run | Yrd Mat Mat Mat Combat Hostiles Destroyed 11 | . . 9 2 Guns 1 | . . . 1 Cannons 9 | . . 9 . AOE 1 | . . . 1 Classes Destroyed 7 | 3 . 4 . Worker 3 | 2 . . 1 Tunneler 6 | 6 . . . Recycler 2 | 1 . 1 . Watcher 1 | . . 1 . Grunt 9 | . . 7 2 Brawler 1 | . . 1 . Sentry 1 | . . 1 . Best Kill Streak 5 | 5 . 3 3 Combat Bots Only 3 | . . 3 2 Max Kills in Single Turn 2 | 1 . 2 2 Gunslinging . | . . . . Exploded 1 | . . . 1 Melee . | . . . . Uniques/NPCs Destroyed . | . . . . Combat | -11 -10 -9 -8 -------- Run | Yrd Mat Mat Mat Hostile Shots Fired 109 | . . 42 67 Missed 26 | . . 7 19 Damage Taken 1230 | . . 561 669 Core 246 | . . 154 92 Absorbed by Shields . | . . . . Core Remaining (%) 87 | 100 100 61 . Volleys Fired 61 | 27 . 27 7 Largest 3 | 2 . 2 3 Hottest 148 | 60 . 136 148 Shots Fired 120 | 54 . 50 16 Gun 61 | 54 . 1 6 Cannon 59 | . . 49 10 Launcher . | . . . . Special . | . . . . Kinetic 35 | 27 . . 8 Thermal 52 | . . 49 3 Explosive . | . . . . Electromagnetic 33 | 27 . 1 5 Robot Hit Streak 9 | 9 . 5 9 Robot Miss Streak 7 | 2 . 7 5 Penetration Max . | . . . . Secondary Targets . | . . . . Shots Hit Robots 73 | 35 . 27 11 Core Hits 28 | 9 . 12 7 Critical Kills . | . . . . Critical Parts Destroyed . | . . . . Critical Strikes 1 | 1 . . . Corrupt 1 | 1 . . . Melee Attacks . | . . . . Impact . | . . . . Slashing . | . . . . Piercing . | . . . . Sneak Attacks . | . . . . Combat Hostiles . | . . . . Follow-up Attacks . | . . . . Damage Inflicted 1505 | 490 . 641 374 Guns 556 | 454 . 18 84 Cannons 752 | . . 618 134 Explosions 192 | 36 . . 156 Melee . | . . . . Ramming 5 | . . 5 . Kinetic 274 | 187 . . 87 Thermal 873 | 36 . 618 219 Explosive . | . . . . Electromagnetic 353 | 267 . 18 68 Impact . | . . . . Slashing . | . . . . Piercing . | . . . . Highest Corruption . | . . . . Average Corruption . | . . . . Corruption Purged . | . . . . Corruption Blocked . | . . . . Overload Shots . | . . . . Overflow Damage 15 | . . 15 . Projectiles 15 | . . 15 . Explosions . | . . . . Melee . | . . . . Knockbacks 5 | . . . 5 Impact . | . . . . Kinetic 3 | . . . 3 Secondary 2 | . . . 2 Self-Inflicted Damage . | . . . . Shots . | . . . . Rammed 1 | . . 1 . Targets Rammed 1 | . . 1 . Kicked . | . . . . Crushed . | . . . . Highest Temperature 618 | . . 618 462 Average Temperature 227 | . . 218 289 Received Heat Transfer 591 | . . 231 360 Effects 20 | . . 15 5 Shutdowns 3 | . . 3 . Energy Bleed 3 | . . 2 1 Matter Decay 1 | . . 1 . Short Circuit 5 | . . 3 2 Damage (minor) 4 | . . 4 . Damage (major) 3 | . . 1 2 Damage (core) 1 | . . 1 . Siege Activations . | . . . . Robots Corrupted . | . . . . Combat Hostiles . | . . . . Parts Fried 3 | 3 . . . Impact Corruptions . | . . . . Robots Melted . | . . . . Combat Hostiles . | . . . . Parts Melted 2 | . . 1 1 Heat Transferred 1471 | 50 . 1110 311 Parts Sabotaged . | . . . . Parts Stolen . | . . . . Parts Stripped . | . . . . Power Chain Reactions 2 | 1 . . 1 Alert | -11 -10 -9 -8 ------- Run | Yrd Mat Mat Mat Peak Influence 220 | 45 45 220 123 Initial 92 | . 29 5 92 Average 57 | 13 35 88 94 Maximum Alert Level 1 | . . 1 . Low Security (%) 93 | 100 100 85 100 Level 1 6 | . . 14 . Level 2 . | . . . . Level 3 . | . . . . Level 4 . | . . . . Level 5 . | . . . . High Security . | . . . . Max Security . | . . . . Squads Dispatched 3 | . . 2 1 Investigation 2 | . . 1 1 Extermination . | . . . . Reinforcement 1 | . . 1 . Assault . | . . . . Garrison . | . . . . Intercept . | . . . . Searches Triggered . | . . . . Construction Impeded . | . . . . Haulers Reinforced . | . . . . Active Scanning Responses . | . . . . Cargo Convoy Interrupts . | . . . . Stealth | -11 -10 -9 -8 --------- Run | Yrd Mat Mat Mat Distress Signals 1 | . . . 1 Communications Jammed . | . . . . Distress Signals . | . . . . Times Spotted 28 | . 1 14 13 Peak Tracking Total 12 | . 1 4 12 Tactical Retreats 1 | . . . 1 Traps | -11 -10 -9 -8 ------- Run | Yrd Mat Mat Mat Traps Triggered 1 | . . 1 . Indirectly . | . . . . Trap Hack Attempts . | . . . . Triggered . | . . . . Disarmed . | . . . . Reprogrammed . | . . . . Reused . | . . . . Traps Extracted . | . . . . Installed . | . . . . Triggered . | . . . . Machines | -11 -10 -9 -8 ---------- Run | Yrd Mat Mat Mat Machines Disabled 1 | . . 1 . Max in Single Turn 1 | . . 1 . Machines Repaired . | . . . . Machines Dismantled . | . . . . Machines Sabotaged . | . . . . Overloaded Fab Kills . | . . . . Hacking | -11 -10 -9 -8 --------- Run | Yrd Mat Mat Mat Machines Accessed 5 | . 2 2 1 Terminals 5 | . 2 2 1 Fabricators . | . . . . Repair Stations . | . . . . Recycling Units . | . . . . Scanalyzers . | . . . . Garrison Access . | . . . . Total Hacks 11 | . 5 3 3 Successful 3 | . 2 1 . Failed 8 | . 3 2 3 Catastrophic 1 | . . 1 . Database Lockouts . | . . . . Manual 9 | . 3 3 3 Terminals 11 | . 5 3 3 Fabricators . | . . . . Repair Stations . | . . . . Recycling Units . | . . . . Scanalyzers . | . . . . Garrison Access . | . . . . Terminal Hacks 1 | . 1 . . Unreport Threat 1 | . 1 . . Fabricator Hacks . | . . . . Repair Station Hacks . | . . . . Recycling Unit Hacks . | . . . . Scanalyzer . | . . . . Garrison Access Hacks . | . . . . Unauthorized Hacks 2 | . 1 1 . Terminals 2 | . 1 1 . Operators 2 | . 1 1 . Fabricators . | . . . . Repair Stations . | . . . . Recycling Units . | . . . . Scanalyzers . | . . . . Garrison Access . | . . . . Data Cores Recovered . | . . . . Used . | . . . . Hacking Detections 3 | . 1 1 1 Full Trace Events 3 | . 1 1 1 Feedback Events . | . . . . Feedback Blocked . | . . . . Robot Schematics Acquired . | . . . . Robots Built . | . . . . Authchips . | . . . . Time . | . . . . Total Robot Build Rating . | . . . . Part Schematics Acquired . | . . . . Parts Built . | . . . . Authchips . | . . . . Time . | . . . . Total Part Build Rating . | . . . . Parts Repaired . | . . . . Time . | . . . . Parts Recycled . | . . . . Recycled Matter . | . . . . Retrieved Matter . | . . . . Retrieved Components . | . . . . Parts Scanalyzed . | . . . . Part Schematics Acquired . | . . . . Parts Damaged . | . . . . Bothacking | -11 -10 -9 -8 ------------ Run | Yrd Mat Mat Mat Used RIF Installer . | . . . . Robots Hacked . | . . . . Non-combat . | . . . . Combat . | . . . . Robot Hacks Applied . | . . . . Relay Couplers Released . | . . . . Fabnet Peak Effective % . | . . . . Robots Rewired . | . . . . Allies Hacked . | . . . . Hacks Repelled . | . . . . Allies | -11 -10 -9 -8 -------- Run | Yrd Mat Mat Mat Total Allies . | . . . . Largest Group . | . . . . Highest-Rated Group . | . . . . Highest-Rated Ally . | . . . . Total Orders . | . . . . Ally Attacks . | . . . . Total Damage . | . . . . Kills . | . . . . Allies Corrupted . | . . . . Allies Melted . | . . . . Intel | -11 -10 -9 -8 ------- Run | Yrd Mat Mat Mat Robot Analysis Total . | . . . . Derelict Logs Recovered . | . . . . Drone Launches . | . . . . Drone Recoveries . | . . . . Exploration | -11 -10 -9 -8 ------------- Run | Yrd Mat Mat Mat Turns Passed 1546 | 306 473 704 63 Spaces Moved 815 | 133 294 365 23 Core 4 | 4 . . . Treads 811 | 129 294 365 23 Legs . | . . . . Wheels . | . . . . Hover . | . . . . Flight . | . . . . Fastest Speed 50 | 50 160 160 160 Average Speed 159 | 156 160 160 160 Slowest Speed 160 | 160 160 160 160 Overloaded Moves . | . . . . Propulsion Burnouts . | . . . . Robots Hopped . | . . . . Cave-ins Triggered . | . . . . Exploration Rate (%) 15 | 10 25 23 4 Regions Visited 3 Branch Regions . Pre-discovered Areas . | . . . . Known Exits Taken . | . . . . Unknown Exits Taken 3 | 1 1 1 . Scrap Searched . | . . . . Spaces Dug . | . . . . Terrain Destroyed 10 | 5 . . 5 Melee . | . . . . Projectile . | . . . . AOE 10 | 5 . . 5 Terrain Rammed . | . . . . Walls Destroyed . | . . . . Machines Disabled . | . . . . Actions | -11 -10 -9 -8 --------- Run | Yrd Mat Mat Mat Total 944 | 177 296 437 34 Wait . | . . . . Move 812 | 132 293 364 23 Hop . | . . . . Pick Up 27 | 11 2 14 . Fast Attach 3 | . . 3 . Attach 13 | 7 . 3 3 Detach . | . . . . Swap 12 | . 1 10 1 Drop 15 | . . 15 . Fire 61 | 27 . 27 7 Melee . | . . . . Ram . | . . . . Kick . | . . . . Crush 1 | . . 1 . Escape Stasis . | . . . . Rewire . | . . . . Trap . | . . . . Miscellaneous . | . . . . Route ------- -11/Scrapyard -10/Materials -9/Materials -8/Materials History --------- Turn | Location | Event 16 | -11/Scrapyard | Discovered new exit (range 16) 307 | -11/Scrapyard | Entered Materials 311 | -10/Materials | Build established: Mutant 754 | -10/Materials | Discovered new exit (range 10) 780 | -10/Materials | Entered another Materials area 780 | -9/Materials | Evolved 2 slots: Propulsion x1, Utility x1 1441 | -9/Materials | Discovered new exit (range 15) 1484 | -9/Materials | Entered another Materials area 1484 | -8/Materials | Evolved 2 slots: Utility x1, Weapon x1 1547 | -8/Materials | Self-destructed Last Messages --------------- 01533_ Particle Cannon destroyed. 01535_ G-47 Trooper knocked back. 01535_ Chain reaction triggered in Lgt. Nuclear Core. 01535_ K-01 Serf destroyed. 01535_ G-47 Trooper destroyed. 01536_ Lgt. Treads destroyed. 01538_ S-10 Pest knocked back. 01538_ Lgt. Treads destroyed. 01539_ Imp. Targeting Computer broken. 01539_ Overheating: Short circuit. 01539_ Imp. EM Shotgun destroyed. 01541_ Sensor Array broken. 01541_ Overheating: Short circuit. 01544_ Overheating: Lgt. Cannon damaged (-32). 01544_ Overheating: Imp. Ion Engine damaged (-10). 01544_ Lgt. Nuclear Core melted. 01544_ G-47 Trooper destroyed. 01544_ Lgt. Treads destroyed. Map ----- +----------------------------------------------------+ | ?????????????????????????????????????????? | | ?????????????????????????????????????????? | | ?????????????????????????????????????????? | | ?????????????????????????????????????????? | | ?????????????????????????????????????????? | | ?????????????????????????????????????????? | | ?????????????????????????????????????????? | | ?????????????????????????????????????????? | | ?????????????????????????????????????????? | | ?????????????????????????????????????????? | | ?????????????????????????????????????????? | | ?????????????????????#???????????????????? | | ???????????????????## ??????????????????? | | ???????????????????? ??????????????????? | | ???????????????????? ???###########????? | | ????????????????????? /???# #????? | | ????????????????????? ??# """ #????? | | ?????????????????????#% ??# """ #????? | | ?????????????????????# ??# """ #????? | | ?????????????????????# ??#" #????? | | ?????????????????????#s% ?#T #????? | | ?????????????????????# gw?#" #????? | | ?????????????????????#gs%?# #????? | | ??????????????######## ##;;;;;#####????? | | ??????????????# g #????? | | ???????????# @ g #????? | | ??????????????# %= #????? | | ??????????????###+##########=%= #####????? | | ????????????????????????????# #????????? | | ????????????????????????????# #????????? | | ????????????????????????????+ #????????? | | ????????????????????????????# #????????? | | ????????????????????????????# #????????? | | ????????????????????????????# #????????? | | ????????????????????????????# #????????? | | ????????????????????????????# #????????? | | ????????????????????????????# #????????? | | ????????????????????????????+ #????????? | | ????????????????????????????# #????????? | | ????????????????????????????# ?????????? | | ????????????????????????????? ?????????? | | ?????????????????????????????????????????? | | ?????????????????????????????????????????? | | ?????????????????????????????????????????? | | ?????????????????????????????????????????? | | ?????????????????????????????????????????? | | ?????????????????????????????????????????? | | ?????????????????????????????????????????? | | ?????????????????????????????????????????? | | ?????????????????????????????????????????? | +----------------------------------------------------+ Best States ------------- Heat Dissipation 31 Energy Generation 12 Energy Capacity 265 Matter Stores 300 Matter Capacity 300 Sight Range 16 Robot Scan Range 14 Terrain Scan Range 16 Terrain Scan Density 10 Evasion (%) 40 Targeting Accuracy 12 Recoil Reduction 3 Item Schematics ----------------- None Robot Schematics ------------------ None Fabricated ------------ Nothing Alien Tech Used ----------------- None Achievements -------------- Everything Is Under Control Challenges ------------ None Game ------ Seed ChromaticDeliveryLink Manual? 0 Play Time 00:15:33 Cumulative 13.3 hours Start 2024.11.06 @ 18:10:33 End 2024.11.06 @ 18:24:49 Sessions 1 Manual Loads 0 Difficulty Rogue Special Mode None Game No. 31 Rogue 31 Adventurer 0 Explorer 0 Win Type - Total 0 Types 0/0/0/0/0/0/0/0/0 Lore% 8 Gallery% 15 Achievement% 15 Wizard Run 0 Options --------- Layout 1 ASCII 0 Keyboard 0 Movement Arrows Keybinds 0 Fullscreen 1 Font 24/Smallcaps Map View 50x40 Zoom Use 0% Tactical HUD 1 Map Filters NONE Filters NONE Steam 1 RUN: 142db477-7a77-437c-84dd-9a49edcafeda